fUSD/lending_fUSD_20260405
["ID","MTS","AMOUNT","RATE_DAILY","PERIOD"]
[419749950,1775353869535,-160.0,0.00031,120]
[419749951,1775353869544,-386.24144549,0.00031,120]
[419749952,1775353869555,-52060.48030044,0.00031,2]
[419749953,1775353869564,-160.0,0.00031,120]
[419749954,1775353869574,-700.0,0.00031,2]
[419749955,1775353869584,-152.0,0.00031022,4]
[419749956,1775353869595,-1481.105408,0.00031023,2]
[419749957,1775353869604,-159.34,0.00031199,13]
[419749958,1775353869615,-159.34,0.00031199,13]
[419749959,1775353869625,-159.32,0.00031199,13]
[419749960,1775353869635,-2000.0,0.000312,2]
[419749961,1775353869645,-500.0,0.00031205,2]
[419749962,1775353869655,-825.0,0.00031226,60]
[419749963,1775353869665,-1028.66,0.00031406,30]
[419749964,1775353869675,-150.0,0.0003147,2]
[419749965,1775353869685,-660.77125948,0.00031481,2]
[419749966,1775353869696,-199.29667433,0.000315,2]
[419749967,1775353869706,-150.0,0.000315,2]
[419749968,1775353869718,-192.0,0.00031507,30]
[419749969,1775353869728,-187.0,0.00031507,30]
[419749970,1775353869738,-286.0,0.00031507,30]
[419749971,1775353869750,-269.0,0.00031507,30]
[419749972,1775353869760,-150.0,0.00031507,2]
[419749973,1775353869770,-1338.83,0.00031579,30]
[419749974,1775353869780,-500.0,0.00031778,18]
[419749975,1775353869791,-1028.66,0.00031875,30]
[419749976,1775353869802,-405.7057754,0.00032,120]
[419749977,1775353869813,-235.51717218,0.00032,120]
[419749978,1775353869824,-163.3836619,0.00032,120]
[419749979,1775353869834,-198.40332281,0.00032,120]
[419749980,1775353869845,-172.91661718,0.00032,120]
[419749981,1775353869856,-188.71317311,0.00032,120]
[419749982,1775353869867,-207.2065396,0.00032,120]
[419749983,1775353869878,-186.2469499,0.00032,120]
[419749984,1775353869888,-229.38378983,0.00032,120]
[419749985,1775353869898,-180.15329226,0.00032,120]
[419749986,1775353869908,-288.68822303,0.00032,120]
[419749987,1775353869918,-250.0,0.00032007,22]
[419749988,1775353869928,-363.77908023,0.00032222,30]
[419749989,1775353869939,-903.06654665,0.000323,2]
[419749990,1775353869949,-3112.46009868,0.000323,2]
[419749991,1775353869959,-246.3060426,0.00032312,2]
[419749992,1775353869970,-1028.66,0.00032344,120]
[419749993,1775353869980,-1262.02,0.00032388,2]
[419749994,1775353869990,-383.72,0.00032533,60]
[419749995,1775353870000,-159.34,0.00032569,13]
[419749996,1775353870010,-159.34,0.00032569,13]
[419749997,1775353870020,-159.32,0.00032569,13]
[419749998,1775353870031,-500.0,0.00032631,120]
[419749999,1775353870040,-3869.0,0.00032667,2]
[419750000,1775353870051,-622.0,0.00032737,2]
[419750001,1775353870061,-1263.0,0.00032737,2]
[419750002,1775353870071,-415.0,0.00032737,2]
[419750003,1775353870081,-3770.0,0.00032737,2]
[419750004,1775353870091,-4879.4052876,0.000328,2]
[419750005,1775353870100,-200.947812,0.000328,7]
[419750006,1775353870111,-1028.66,0.00032812,120]
[419750007,1775353870121,-1740.94702821,0.0003287,4]
[419750008,1775353870132,-1000.0,0.00032876,2]
[419750009,1775353870141,-1000.0,0.00032876,2]
[419750010,1775353870151,-1000.0,0.00032876,2]
[419750011,1775353870161,-1000.0,0.00032876,2]
[419750012,1775353870171,-1000.0,0.00032876,2]
[419750013,1775353870180,-1000.0,0.00032876,2]
[419750014,1775353870190,-1000.0,0.00032876,2]
[419750015,1775353870200,-606.36558829,0.00032876,2]
[419750016,1775353870210,-1000.0,0.00032877,120]
[419750017,1775353870220,-916.0,0.00032877,15]
[419750018,1775353870230,-550.42,0.00032877,2]
[419750019,1775353870239,-348.17,0.00032877,2]
[419750020,1775353870249,-373.25125186,0.00032877,2]
[419750021,1775353870259,-500.0,0.00032877,120]
[419750022,1775353870269,-150.0,0.00032877,2]
[419750023,1775353870279,-189.29935164,0.00032877,30]
[419750024,1775353870289,-151.0,0.00032897,14]
[419750025,1775353870299,-161.0,0.000329,120]
[419750026,1775353870308,-150.0,0.00032947,5]
[419750027,1775353870319,-405.7057754,0.00033,120]
[419750028,1775353870329,-235.51717218,0.00033,120]
[419750029,1775353870339,-163.3836619,0.00033,120]
[419750030,1775353870349,-198.40332281,0.00033,120]
[419750031,1775353870359,-172.91661718,0.00033,120]
[419750032,1775353870369,-188.71317311,0.00033,120]
[419750033,1775353870379,-207.2065396,0.00033,120]
[419750034,1775353870388,-186.2469499,0.00033,120]
[419750035,1775353870398,-566.698068,0.00033,14]
[419750036,1775353870408,-174.54171595,0.00033,60]
[419750037,1775353870418,-244.20225875,0.00033,120]
[419750038,1775353870429,-474.06673462,0.00033,30]
[419750039,1775353870439,-1513.39857901,0.00033,120]
[419750040,1775353870448,-749.64,0.00033,30]
[419750041,1775353870459,-288.68822303,0.00033,120]
[419750042,1775353870468,-1219.91,0.00033,30]
[419750043,1775353870479,-13828.9,0.00033,2]
[419750044,1775353870488,-651.16,0.00033,30]
[419750045,1775353870498,-150.0,0.00033043,2]
[419750046,1775353870507,-861.69,0.000331,14]
[419750047,1775353870517,-2432.42,0.000331,14]
[419750048,1775353870526,-825.0,0.00033192,60]
[419750049,1775353870537,-169.2,0.000332,12]
[419750050,1775353870548,-161.0,0.0003328,11]
[419750051,1775353870559,-1028.66,0.00033281,120]
[419750052,1775353870568,-500.0,0.00033333,19]
[419750053,1775353870579,-500.0,0.00033507,2]
[419750054,1775353870589,-1106.0,0.00033583,11]
[419750055,1775353870599,-1572.0,0.000336,11]
[419750056,1775353870609,-150.0,0.000336,30]
[419750057,1775353870619,-250.0,0.00033655,31]
[419750058,1775353870628,-2810.0,0.0003368,11]
[419750059,1775353870639,-1338.83,0.00033742,30]
[419750060,1775353870648,-1028.66,0.0003375,120]
[419750061,1775353870658,-1572.0,0.00033878,11]
[419750062,1775353870669,-405.7057754,0.000339,120]
[419750063,1775353870680,-163.3836619,0.000339,120]
[419750064,1775353870691,-188.71317311,0.000339,120]
[419750065,1775353870702,-207.2065396,0.000339,120]
[419750066,1775353870713,-186.2469499,0.000339,120]
[419750067,1775353870726,-288.68822303,0.000339,120]
[419750068,1775353870737,-2810.0,0.00033903,11]
[419750069,1775353870747,-4570.03,0.00033973,2]
[419750070,1775353870757,-14187.90140848,0.00034,4]
[419750071,1775353870767,-274.89075923,0.00034,120]
[419750072,1775353870777,-500.0,0.00034,30]
[419750073,1775353870788,-1219.91,0.00034,30]
[419750074,1775353870798,-13828.9,0.00034,2]
[419750075,1775353870808,-177.66079548,0.0003405,70]
[419750076,1775353870819,-1262.02,0.00034161,2]
[419750077,1775353870829,-2810.0,0.00034198,11]
[419750078,1775353870839,-200.0,0.000342,13]
[419750079,1775353870850,-414.4,0.00034212,120]
[419750080,1775353870861,-162.0,0.00034216,11]
[419750081,1775353870871,-1028.66,0.00034219,120]
[419750082,1775353870881,-2810.0,0.0003424,11]
[419750083,1775353870891,-500.0,0.00034247,5]
[419750084,1775353870901,-192.0,0.00034247,120]
[419750085,1775353870911,-240.0,0.00034247,120]
[419750086,1775353870921,-187.0,0.00034247,120]
[419750087,1775353870930,-174.0,0.00034247,120]
[419750088,1775353870941,-500.0,0.00034247,2]
[419750089,1775353870952,-500.0,0.00034247,2]
[419750090,1775353870962,-420.0,0.00034247,2]
[419750091,1775353870973,-350.0,0.00034247,2]
[419750092,1775353870983,-350.0,0.00034247,2]
[419750093,1775353870994,-343.0,0.00034247,2]
[419750094,1775353871003,-200.0,0.00034247,2]
[419750095,1775353871014,-200.0,0.00034247,2]
[419750096,1775353871024,-197.0,0.00034247,2]
[419750097,1775353871033,-350.0,0.00034247,2]
[419750098,1775353871044,-350.0,0.00034247,2]
[419750099,1775353871053,-333.0,0.00034247,2]
[419750100,1775353871063,-350.0,0.00034247,2]
[419750101,1775353871073,-350.0,0.00034247,2]
[419750102,1775353871082,-215.0,0.00034247,2]
[419750103,1775353871092,-350.0,0.00034247,2]
[419750104,1775353871106,-350.0,0.00034247,2]
[419750105,1775353871115,-334.0,0.00034247,2]
[419750106,1775353871125,-150.0,0.00034247,2]
[419750107,1775353871135,-160.834572,0.00034251,2]
[419750108,1775353871146,-1572.0,0.00034279,11]
[419750109,1775353871156,-2810.0,0.00034345,11]
[419750110,1775353871166,-1572.0,0.00034345,11]
[419750111,1775353871176,-152.0,0.00034367,5]
[419750112,1775353871186,-534.0,0.00034391,2]
[419750113,1775353871195,-363.77908023,0.00034444,30]
[419750114,1775353871205,-873.0,0.00034445,30]
[419750115,1775353871214,-1121.0,0.00034445,30]
[419750116,1775353871224,-1892.0,0.00034445,30]
[419750117,1775353871234,-947.0,0.00034445,30]
[419750118,1775353871244,-473.0,0.00034445,30]
[419750119,1775353871254,-253.3007133,0.00034464,2]
[419750120,1775353871264,-3869.0,0.0003447,2]
[419750121,1775353871274,-432.0,0.00034477,30]
[419750122,1775353871284,-153.0,0.00034477,30]
[419750123,1775353871294,-433.0,0.0003449,10]
[419750124,1775353871304,-190.08155867,0.000345,120]
[419750125,1775353871314,-162.0,0.00034501,11]
[419750126,1775353871324,-534.0,0.00034503,2]
[419750127,1775353871334,-162.0,0.0003452,11]
[419750128,1775353871344,-1572.0,0.00034523,11]
[419750129,1775353871354,-1572.0,0.0003456,11]
[419750130,1775353871365,-1572.0,0.0003456,11]
[419750131,1775353871376,-489.68653144,0.00034573,2]
[419750132,1775353871387,-166.72533113,0.00034573,2]
[419750133,1775353871397,-534.0,0.00034595,2]
[419750134,1775353871407,-2810.0,0.00034599,11]
[419750135,1775353871419,-534.0,0.00034614,2]
[419750136,1775353871430,-1572.0,0.00034642,11]
[419750137,1775353871440,-534.0,0.00034649,2]
[419750138,1775353871451,-1572.0,0.00034665,11]
[419750139,1775353871677,-1028.66,0.00034687,120]
[419750140,1775353871699,-150.0,0.00034696,2]
[419750141,1775353871708,-161.0,0.00034749,11]
[419750142,1775353871718,-150.0,0.00034786,2]
[419750143,1775353871729,-4767.32469101,0.00034786,2]
[419750144,1775353871739,-150.0,0.00034786,2]
[419750145,1775353871749,-20126.3219038,0.00034786,2]
[419750146,1775353871758,-150.0,0.00034786,2]
[419750147,1775353871767,-9929.69697222,0.00034786,2]
[419750148,1775353871776,-1500.0,0.00034795,2]
[419750149,1775353871785,-200.0,0.000348,10]
[419750150,1775353871794,-200.0,0.000348,10]
[419750151,1775353871804,-1572.0,0.00034843,11]
[419750152,1775353871813,-1444.0,0.00034849,120]
[419750153,1775353871823,-235.80023217,0.00034853,60]
[419750154,1775353871832,-2238.85092554,0.0003488,120]
[419750155,1775353871842,-500.0,0.00034889,20]
[419750156,1775353871852,-150.26124124,0.00034899,73]
[419750157,1775353871860,-678.45974683,0.000349,120]
[419750158,1775353871870,-2000.0,0.000349,2]
[419750159,1775353871879,-1481.105408,0.000349,2]
[419750160,1775353871888,-300.0,0.000349,10]
[419750161,1775353871897,-162.0,0.00034962,11]
[419750162,1775353871906,-3290.55603377,0.00034972,2]
[419750163,1775353871915,-151.0,0.00034997,14]
[419750164,1775353871924,-352.0559433,0.00034999,7]
[419750165,1775353871933,-405.7057754,0.00035,120]
[419750166,1775353871942,-340000.0,0.00035,4]
[419750167,1775353871951,-163.3836619,0.00035,120]
[419750168,1775353871960,-207.2065396,0.00035,120]
[419750169,1775353871970,-186.2469499,0.00035,120]
[419750170,1775353871979,-220.5,0.00035,2]
[419750171,1775353871989,-577.60011614,0.00035,30]
[419750172,1775353872000,-1533.7304215,0.00035,120]
[419750173,1775353872010,-9500.0,0.00035,3]
[419750174,1775353872019,-502.77807408,0.00035,7]
[419750175,1775353872029,-150.0,0.00035,60]
[419750176,1775353872039,-2272.7286464,0.00035,120]
[419750177,1775353872050,-500.0,0.00035,30]
[419750178,1775353872059,-749.64,0.00035,30]
[419750179,1775353872069,-288.68822303,0.00035,120]
[419750180,1775353872079,-200.0,0.00035,3]
[419750181,1775353872089,-1219.91,0.00035,30]
[419750182,1775353872097,-13828.9,0.00035,2]
[419750183,1775353872107,-651.16,0.00035,30]
[419750184,1775353872116,-190.80016896,0.00035068,60]
[419750185,1775353872126,-1572.0,0.00035086,11]
[419750186,1775353872135,-162.0,0.00035104,11]
[419750187,1775353872144,-1572.0,0.00035108,11]
[419750188,1775353872155,-250.0,0.00035111,37]
[419750189,1775353872165,-500.0,0.00035141,120]
[419750190,1775353872174,-1572.0,0.00035149,11]
[419750191,1775353872183,-1028.66,0.00035156,120]
[419750192,1775353872193,-825.0,0.00035158,60]
[419750193,1775353872202,-2947.22249094,0.00035173,2]
[419750194,1775353872212,-1566.0,0.00035178,11]
[419750195,1775353872222,-200.0,0.000352,14]
[419750196,1775353872231,-500.0,0.00035276,120]
[419750197,1775353872241,-500.0,0.00035276,120]
[419750198,1775353872250,-500.0,0.00035276,120]
[419750199,1775353872259,-500.0,0.00035276,120]
[419750200,1775353872269,-500.0,0.00035276,120]
[419750201,1775353872279,-790.9289563,0.00035276,120]
[419750202,1775353872289,-250.0,0.00035276,120]
[419750203,1775353872298,-250.0,0.00035276,120]
[419750204,1775353872308,-500.0,0.00035276,120]
[419750205,1775353872318,-500.0,0.00035276,120]
[419750206,1775353872327,-500.0,0.00035276,120]
[419750207,1775353872336,-250.0,0.00035276,120]
[419750208,1775353872346,-250.0,0.00035276,120]
[419750209,1775353872356,-500.0,0.00035276,120]
[419750210,1775353872365,-500.0,0.00035276,120]
[419750211,1775353872374,-500.0,0.00035276,120]
[419750212,1775353872384,-500.0,0.00035276,120]
[419750213,1775353872393,-500.0,0.00035276,120]
[419750214,1775353872403,-500.0,0.00035276,120]
[419750215,1775353872412,-500.0,0.00035276,120]
[419750216,1775353872422,-500.0,0.00035276,120]
[419750217,1775353872431,-500.0,0.00035276,120]
[419750218,1775353872440,-500.0,0.00035276,120]
[419750219,1775353872452,-500.0,0.00035276,120]
[419750220,1775353872461,-500.0,0.00035276,120]
[419750221,1775353872470,-500.0,0.00035276,120]
[419750222,1775353872479,-500.0,0.00035276,120]
[419750223,1775353872489,-308.8500438,0.00035276,120]
[419750224,1775353872498,-500.0,0.00035276,120]
[419750225,1775353872507,-500.0,0.00035276,120]
[419750226,1775353872516,-910.565316,0.00035276,120]
[419750227,1775353872526,-500.0,0.00035276,120]
[419750228,1775353872535,-500.0,0.00035276,120]
[419750229,1775353872544,-500.0,0.00035276,120]
[419750230,1775353872554,-500.0,0.00035276,120]
[419750231,1775353872563,-500.0,0.00035276,120]
[419750232,1775353872572,-844.9347939,0.00035276,120]
[419750233,1775353872581,-500.0,0.00035276,120]
[419750234,1775353872591,-302.3358925,0.00035276,120]
[419750235,1775353872600,-187.9212549,0.00035276,120]
[419750236,1775353872609,-151.8079326,0.00035276,120]
[419750237,1775353872618,-647.3023732,0.00035276,120]
[419750238,1775353872627,-500.0,0.00035276,120]
[419750239,1775353872637,-500.0,0.00035276,120]
[419750240,1775353872646,-250.0,0.00035276,120]
[419750241,1775353872655,-785.9535269,0.00035276,120]
[419750242,1775353872664,-500.0,0.00035276,120]
[419750243,1775353872673,-755.9121098,0.00035276,120]
[419750244,1775353872683,-500.0,0.00035276,120]
[419750245,1775353872692,-500.0,0.00035276,120]
[419750246,1775353872701,-253.8219485,0.00035276,120]
[419750247,1775353872711,-500.0,0.00035276,120]
[419750248,1775353872720,-250.0,0.00035276,120]
[419750249,1775353872729,-500.0,0.00035276,120]
[419750250,1775353872739,-250.0,0.00035276,120]
[419750251,1775353872748,-500.0,0.00035276,120]
[419750252,1775353872757,-250.0,0.00035276,120]
[419750253,1775353872767,-500.0,0.00035276,120]
[419750254,1775353872776,-500.0,0.00035276,120]
[419750255,1775353872785,-500.0,0.00035276,120]
[419750256,1775353872795,-500.0,0.00035276,120]
[419750257,1775353872804,-500.0,0.00035276,120]
[419750258,1775353872814,-500.0,0.00035276,120]
[419750259,1775353872823,-890.7491458,0.00035276,120]
[419750260,1775353872832,-500.0,0.00035276,120]
[419750261,1775353872841,-500.0,0.00035276,120]
[419750262,1775353872850,-500.0,0.00035276,120]
[419750263,1775353872859,-749.9627088,0.00035276,120]
[419750264,1775353872868,-500.0,0.00035276,120]
[419750265,1775353872878,-500.0,0.00035276,120]
[419750266,1775353872887,-835.2909077,0.00035276,120]
[419750267,1775353872896,-500.0,0.00035276,120]
[419750268,1775353872905,-500.0,0.00035276,120]
[419750269,1775353872914,-500.0,0.00035276,120]
[419750270,1775353872923,-500.0,0.00035276,120]
[419750271,1775353872932,-500.0,0.00035276,120]
[419750272,1775353872941,-500.0,0.00035276,120]
[419750273,1775353872951,-500.0,0.00035276,120]
[419750274,1775353872960,-500.0,0.00035276,120]
[419750275,1775353872969,-500.0,0.00035276,120]
[419750276,1775353872978,-500.0,0.00035276,120]
[419750277,1775353872988,-500.0,0.00035276,120]
[419750278,1775353872997,-500.0,0.00035276,120]
[419750279,1775353873006,-500.0,0.00035276,120]
[419750280,1775353873015,-500.0,0.00035276,120]
[419750281,1775353873025,-500.0,0.00035276,120]
[419750282,1775353873034,-500.0,0.00035276,120]
[419750283,1775353873044,-500.0,0.00035276,120]
[419750284,1775353873054,-692.2518621,0.00035276,120]
[419750285,1775353873065,-398.5682229,0.00035276,120]
[419750286,1775353873075,-500.0,0.00035276,120]
[419750287,1775353873086,-500.0,0.00035276,120]
[419750288,1775353873096,-500.0,0.00035276,120]
[419750289,1775353873106,-500.0,0.00035276,120]
[419750290,1775353873116,-500.0,0.00035276,120]
[419750291,1775353873127,-500.0,0.00035276,120]
[419750292,1775353873137,-500.0,0.00035276,120]
[419750293,1775353873148,-500.0,0.00035276,120]
[419750294,1775353873163,-500.0,0.00035276,120]
[419750295,1775353873172,-500.0,0.00035276,120]
[419750296,1775353873182,-500.0,0.00035276,120]
[419750297,1775353873192,-500.0,0.00035276,120]
[419750298,1775353873202,-500.0,0.00035276,120]
[419750299,1775353873212,-500.0,0.00035276,120]
[419750300,1775353873222,-500.0,0.00035276,120]
[419750301,1775353873231,-500.0,0.00035276,120]
[419750302,1775353873241,-500.0,0.00035276,120]
[419750303,1775353873251,-649.9158762,0.00035276,120]
[419750304,1775353873262,-2798.0,0.00035305,11]
[419750305,1775353873272,-1000.0,0.00035342,5]
[419750306,1775353873281,-873.0,0.00035445,30]
[419750307,1775353873292,-1121.0,0.00035445,30]
[419750308,1775353873302,-1892.0,0.00035445,30]
[419750309,1775353873311,-947.0,0.00035445,30]
[419750310,1775353873320,-473.0,0.00035445,30]
[419750311,1775353873331,-432.0,0.00035477,30]
[419750312,1775353873341,-153.0,0.00035477,30]
[419750313,1775353873350,-2455.283666,0.000355,20]
[419750314,1775353873360,-152.0,0.00035507,2]
[419750315,1775353873370,-220.0,0.00035507,2]
[419750316,1775353873381,-209.19812795,0.00035513,2]
[419750317,1775353873390,-28192.14363459,0.00035516,2]
[419750318,1775353873401,-773.53846154,0.00035589,30]
[419750319,1775353873410,-1013.3035554,0.00035589,30]
[419750320,1775353873419,-1353.23076923,0.00035589,30]
[419750321,1775353873429,-1533.84615385,0.00035589,30]
[419750322,1775353873439,-728.30769231,0.00035589,30]
[419750323,1775353873449,-903.07692308,0.00035589,30]
[419750324,1775353873459,-665.53846154,0.00035589,30]
[419750325,1775353873470,-1286.76923077,0.00035589,30]
[419750326,1775353873480,-927.38461538,0.00035589,30]
[419750327,1775353873491,-1355.07692308,0.00035589,30]
[419750328,1775353873501,-720.07,0.00035589,30]
[419750329,1775353873512,-1358.46153846,0.00035589,30]
[419750330,1775353873522,-185.15450478,0.00035589,30]
[419750331,1775353873532,-1055.38461538,0.00035589,30]
[419750332,1775353873541,-966.46153846,0.00035589,30]
[419750333,1775353873551,-817.51,0.00035589,30]
[419750334,1775353873561,-655.11809317,0.00035589,30]
[419750335,1775353873571,-803.83573589,0.000356,120]
[419750336,1775353873581,-2810.0,0.00035602,11]
[419750337,1775353873591,-110459.56523149,0.00035613,10]
[419750338,1775353873601,-176.857268,0.00035613,14]
[419750339,1775353873611,-569.0,0.00035613,9]
[419750340,1775353873620,-500.0,0.00035613,9]
[419750341,1775353873631,-500.0,0.00035613,9]
[419750342,1775353873640,-500.0,0.00035613,9]
[419750343,1775353873651,-500.0,0.00035613,9]
[419750344,1775353873661,-150.0,0.00035613,9]
[419750345,1775353873670,-150.0,0.00035613,9]
[419750346,1775353873680,-500.0,0.00035613,9]
[419750347,1775353873690,-150.0,0.00035613,9]
[419750348,1775353873700,-150.81264723,0.00035613,9]
[419750349,1775353873710,-500.0,0.00035613,9]
[419750350,1775353873719,-500.0,0.00035613,9]
[419750351,1775353873728,-150.0,0.00035613,9]
[419750352,1775353873737,-500.0,0.00035613,9]
[419750353,1775353873747,-150.0,0.00035613,9]
[419750354,1775353873756,-500.0,0.00035613,9]
[419750355,1775353873766,-500.0,0.00035613,9]
[419750356,1775353873776,-159.6039587,0.00035613,9]
[419750357,1775353873785,-500.0,0.00035613,9]
[419750358,1775353873795,-150.0,0.00035613,2]
[419750359,1775353873805,-150.0,0.00035613,9]
[419750360,1775353873815,-500.0,0.00035613,9]
[419750361,1775353873824,-682.0,0.00035613,9]
[419750362,1775353873834,-200.0,0.00035613,9]
[419750363,1775353873843,-1399.0,0.00035613,9]
[419750364,1775353873852,-500.0,0.00035613,9]
[419750365,1775353873862,-200.0,0.00035613,9]
[419750366,1775353873871,-500.0,0.00035613,9]
[419750367,1775353873881,-500.0,0.00035613,9]
[419750368,1775353873891,-500.0,0.00035613,9]
[419750369,1775353873900,-150.0,0.00035613,2]
[419750370,1775353873910,-500.0,0.00035613,9]
[419750371,1775353873919,-253.96032134,0.00035613,9]
[419750372,1775353873929,-150.0,0.00035613,9]
[419750373,1775353873938,-500.0,0.00035613,9]
[419750374,1775353873947,-500.0,0.00035613,9]
[419750375,1775353873958,-384.23334721,0.00035615,7]
[419750376,1775353873967,-2319.9524076,0.00035615,9]
[419750377,1775353873977,-535.47084436,0.00035615,9]
[419750378,1775353873987,-535.47084436,0.00035615,9]
[419750379,1775353873996,-30000.0,0.00035616,2]
[419750380,1775353874006,-1000.0,0.00035616,2]
[419750381,1775353874016,-353.86660455,0.00035616,120]
[419750382,1775353874025,-350.0,0.00035616,120]
[419750383,1775353874034,-151.296709,0.00035616,9]
[419750384,1775353874044,-305.064638,0.00035616,9]
[419750385,1775353874053,-721.26,0.00035616,9]
[419750386,1775353874063,-500.0,0.00035616,9]
[419750387,1775353874073,-500.0,0.00035616,9]
[419750388,1775353874084,-257.08770788,0.00035616,9]
[419750389,1775353874093,-502.56199865,0.00035616,9]
[419750390,1775353874103,-500.0,0.00035616,9]
[419750391,1775353874113,-501.32732998,0.00035616,9]
[419750392,1775353874122,-502.21833231,0.00035616,9]
[419750393,1775353874132,-527.1253043,0.00035616,9]
[419750394,1775353874142,-503.07121996,0.00035616,9]
[419750395,1775353874151,-500.0,0.00035616,9]
[419750396,1775353874161,-500.0,0.00035616,9]
[419750397,1775353874171,-502.76943848,0.00035616,9]
[419750398,1775353874180,-500.0,0.00035616,9]
[419750399,1775353874190,-617.70378205,0.00035616,9]
[419750400,1775353874200,-500.0,0.00035616,9]
[419750401,1775353874210,-502.01621158,0.00035616,9]
[419750402,1775353874220,-500.0,0.00035616,9]
[419750403,1775353874230,-500.0,0.00035616,9]
[419750404,1775353874239,-500.0,0.00035616,9]
[419750405,1775353874249,-502.41825801,0.00035616,9]
[419750406,1775353874258,-500.0,0.00035616,9]
[419750407,1775353874268,-500.0,0.00035616,9]
[419750408,1775353874277,-431.72998954,0.00035616,9]
[419750409,1775353874286,-501.41170804,0.00035616,9]
[419750410,1775353874296,-500.0,0.00035616,9]
[419750411,1775353874306,-500.0,0.00035616,9]
[419750412,1775353874315,-500.0,0.00035616,9]
[419750413,1775353874324,-500.0,0.00035616,9]
[419750414,1775353874334,-500.0,0.00035616,9]
[419750415,1775353874343,-500.0,0.00035616,9]
[419750416,1775353874352,-500.0,0.00035616,9]
[419750417,1775353874362,-500.0,0.00035616,9]
[419750418,1775353874371,-500.0,0.00035616,9]
[419750419,1775353874380,-518.75523557,0.00035616,9]
[419750420,1775353874390,-500.0,0.00035616,9]
[419750421,1775353874399,-500.0,0.00035616,9]
[419750422,1775353874409,-501.36702245,0.00035616,9]
[419750423,1775353874418,-500.0,0.00035616,9]
[419750424,1775353874427,-500.0,0.00035616,9]
[419750425,1775353874437,-500.0,0.00035616,9]
[419750426,1775353874447,-500.0,0.00035616,9]
[419750427,1775353874455,-500.0,0.00035616,9]
[419750428,1775353874465,-500.0,0.00035616,9]
[419750429,1775353874474,-500.0,0.00035616,9]
[419750430,1775353874483,-500.0,0.00035616,9]
[419750431,1775353874492,-500.0,0.00035616,9]
[419750432,1775353874501,-500.0,0.00035616,9]
[419750433,1775353874511,-500.0,0.00035616,9]
[419750434,1775353874521,-500.0,0.00035616,9]
[419750435,1775353874531,-500.0,0.00035616,9]
[419750436,1775353874542,-329.85622942,0.00035616,9]
[419750437,1775353874551,-500.0,0.00035616,9]
[419750438,1775353874561,-501.19000103,0.00035616,9]
[419750439,1775353874571,-500.0,0.00035616,9]
[419750440,1775353874581,-344.76063875,0.00035616,9]
[419750441,1775353874590,-502.06021821,0.00035616,9]
[419750442,1775353874600,-501.70319158,0.00035616,9]
[419750443,1775353874609,-501.69907179,0.00035616,9]
[419750444,1775353874618,-501.5203056,0.00035616,9]
[419750445,1775353874627,-350.0,0.00035616,120]
[419750446,1775353874636,-500.0,0.00035616,9]
[419750447,1775353874646,-337.54612137,0.00035616,9]
[419750448,1775353874655,-1688.67,0.00035616,9]
[419750449,1775353874665,-500.0,0.00035616,9]